bitfinex/quotes_BTCUSD_20240611
["timestamp","ask_amount","ask_price","bid_price","bid_amount"]
[1718134942635,0.0177689,67257.0,67256.0,0.59535556]
[1718134942899,0.0177689,67257.0,67256.0,1.06363956]
[1718134943136,0.0177689,67257.0,67256.0,1.52432209]
[1718134943634,0.0177689,67257.0,67256.0,1.65708379]
[1718134944119,0.0117689,67257.0,67256.0,1.65708379]
[1718134944363,0.0117689,67257.0,67256.0,1.52424828]
[1718134944680,0.0117689,67257.0,67256.0,1.45966149]
[1718134944958,0.01761154,67276.0,67270.0,9.97863163]
[1718134945147,0.01761154,67276.0,67270.0,10.43025267]
[1718134945364,0.1,67279.0,67270.0,10.34999863]
[1718134945587,0.1,67280.0,67270.0,10.43878971]
[1718134946060,0.1,67280.0,67270.0,10.58321847]
[1718134946269,6.049e-05,67281.0,67270.0,10.49432693]
[1718134946661,0.00356,67271.0,67270.0,10.49432693]
[1718134947963,0.00356,67271.0,67270.0,10.50432693]
[1718134948166,0.00356,67271.0,67270.0,10.49832693]
[1718134948594,0.00356,67271.0,67270.0,10.59104588]
[1718134948869,0.00356,67271.0,67270.0,10.58904588]
[1718134949075,0.00356,67271.0,67270.0,10.6470019]
[1718134949314,0.00356,67271.0,67270.0,10.6490019]
[1718134949555,0.00356,67271.0,67270.0,10.6430019]
[1718134949792,0.00356,67271.0,67270.0,10.6460019]
[1718134950516,0.00356,67271.0,67270.0,10.57381107]
[1718134950740,0.00356,67271.0,67270.0,10.50169114]
[1718134950965,0.00356,67271.0,67270.0,10.52559114]
[1718134951190,0.00356,67271.0,67270.0,10.51859114]
[1718134951629,0.00356,67271.0,67270.0,10.52859114]
[1718134951850,0.00356,67271.0,67270.0,10.66691107]
[1718134952069,0.00356,67271.0,67270.0,10.66291107]
[1718134952279,0.00456,67271.0,67270.0,10.67591107]
[1718134952506,0.00356,67271.0,67270.0,10.66291107]
[1718134952728,0.00356,67271.0,67270.0,10.74520298]
[1718134952910,0.00456,67271.0,67270.0,10.75820298]
[1718134953164,0.00456,67271.0,67270.0,10.76920298]
[1718134953384,0.00456,67271.0,67270.0,10.68691107]
[1718134953608,0.00456,67271.0,67270.0,10.45048564]
[1718134953846,0.00456,67271.0,67270.0,10.52268564]
[1718134954947,0.00456,67271.0,67270.0,10.54258564]
[1718134955156,0.00456,67271.0,67270.0,10.52268564]
[1718134955846,0.00456,67271.0,67270.0,10.54258564]
[1718134956288,0.00456,67271.0,67270.0,10.68690557]
[1718134957694,0.00456,67271.0,67270.0,11.2177845]
[1718134957978,0.00456,67271.0,67270.0,11.32109152]
[1718134958223,0.00456,67271.0,67270.0,11.82109152]
[1718134962633,0.00456,67271.0,67270.0,11.80119152]
[1718134962834,0.00456,67271.0,67270.0,11.82109152]
[1718134963040,0.00456,67271.0,67270.0,11.68282481]
[1718134963247,0.00456,67271.0,67270.0,11.65787994]
[1718134963668,0.00456,67271.0,67270.0,11.15787994]
[1718134963889,0.00456,67271.0,67270.0,10.29910101]
[1718134964108,0.00456,67271.0,67270.0,10.21771745]
[1718134964286,0.00456,67271.0,67270.0,10.15982595]
[1718134964556,0.00456,67271.0,67270.0,10.37634588]
[1718134964784,0.00456,67271.0,67270.0,10.60224588]
[1718134964995,0.00456,67271.0,67270.0,10.58795489]
[1718134965201,0.00356,67271.0,67270.0,10.65815489]
[1718134965622,0.00356,67271.0,67270.0,10.64715489]
[1718134966048,0.00356,67271.0,67270.0,10.66115489]
[1718134966468,0.00356,67271.0,67270.0,10.65015489]
[1718134967357,0.00356,67271.0,67270.0,10.64715489]
[1718134968001,0.00456,67271.0,67270.0,10.66715489]
[1718134968648,0.00456,67271.0,67270.0,10.52283496]
[1718134968855,0.00456,67271.0,67270.0,10.54273496]
[1718134969504,0.00456,67271.0,67270.0,10.60135937]
[1718134970554,0.00456,67271.0,67270.0,10.89866837]
[1718134971196,0.00456,67271.0,67270.0,10.84075936]
[1718134971417,0.00456,67271.0,67270.0,10.89871356]
[1718134972551,0.00456,67271.0,67270.0,11.04305535]
[1718134972767,0.00456,67271.0,67270.0,11.77662528]
[1718134972972,0.00456,67271.0,67270.0,11.79962528]
[1718134975296,0.00456,67271.0,67270.0,11.65530535]
[1718134976780,0.00456,67271.0,67270.0,11.65530214]
[1718134977437,0.00456,67271.0,67270.0,11.58310214]
[1718134977645,0.00456,67271.0,67270.0,11.65530214]
[1718134977849,0.00456,67271.0,67270.0,11.58393397]
[1718134978051,0.00456,67271.0,67270.0,11.65613397]
[1718134978661,0.00456,67271.0,67270.0,11.8004539]
[1718134979346,0.00456,67271.0,67270.0,12.49829488]
[1718134979544,0.00456,67271.0,67270.0,12.5625924]
[1718134980449,0.00456,67271.0,67270.0,12.46445762]
[1718134980675,0.00456,67271.0,67270.0,12.53665762]
[1718134981076,0.00356,67271.0,67270.0,12.50936895]
[1718134981339,0.00356,67271.0,67270.0,12.3256653]
[1718134981569,0.00356,67271.0,67270.0,12.46345925]
[1718134981797,0.00356,67271.0,67270.0,12.45045925]
[1718134981984,0.00356,67271.0,67270.0,12.46245925]
[1718134982206,0.00356,67271.0,67270.0,12.47545925]
[1718134982428,0.00356,67271.0,67270.0,12.46345925]
[1718134982646,0.00356,67271.0,67270.0,12.47445925]
[1718134983293,0.00356,67271.0,67270.0,12.60989005]
[1718134983518,0.00356,67271.0,67270.0,12.77245605]
[1718134984409,0.00356,67271.0,67270.0,12.71299981]
[1718134984634,0.00356,67271.0,67270.0,12.68463141]
[1718134985069,0.00356,67271.0,67270.0,12.90951157]
[1718134985716,0.00356,67271.0,67270.0,12.90958344]
[1718134986503,0.00356,67271.0,67270.0,12.79913336]
[1718134986753,0.07018593,67292.0,67290.0,0.148609]
[1718134986969,0.105049,67293.0,67290.0,0.148609]
[1718134987194,0.0914,67291.0,67277.0,0.04419421]
[1718134987408,0.0914,67283.0,67280.0,0.0722]
[1718134987863,0.0914,67283.0,67282.0,0.0722]
[1718134988291,0.0914,67283.0,67282.0,0.220828]
[1718134988499,0.0914,67283.0,67282.0,0.22915736]
[1718134989565,0.0904,67283.0,67282.0,0.23015736]
[1718134990183,0.0904,67283.0,67282.0,0.25759252]
[1718134990618,0.069,67292.0,67287.0,0.148616]
[1718134991254,0.069,67292.0,67288.0,0.00832936]
[1718134992111,0.069,67292.0,67288.0,0.15694336]
[1718134992617,0.0214,67291.0,67288.0,0.15694336]
[1718134993246,0.0214,67291.0,67288.0,0.15794336]
[1718134994769,0.0214,67291.0,67288.0,0.15694336]
[1718134994986,0.0214,67291.0,67288.0,0.15794336]
[1718134998839,0.02,67290.0,67288.0,0.15794336]
[1718134999086,0.0904,67291.0,67288.0,0.15794336]
[1718134999087,0.30589235,67289.0,67288.0,0.00932936]
[1718134999297,0.30589235,67289.0,67288.0,0.001]
[1718134999505,0.21369668,67289.0,67288.0,0.00928461]
[1718134999718,0.22369668,67289.0,67288.0,0.001]
[1718134999924,0.20369668,67289.0,67288.0,0.00928461]
[1718135000132,0.20369668,67289.0,67288.0,0.001]
[1718135000349,0.20369668,67289.0,67288.0,0.00928461]
[1718135000564,0.0804,67289.0,67288.0,0.001]
[1718135000973,0.0804,67289.0,67288.0,0.00929991]
[1718135001750,0.0804,67289.0,67288.0,0.00829991]
[1718135001946,0.0804,67289.0,67288.0,0.001]
[1718135002539,0.0804,67289.0,67288.0,0.00929991]
[1718135002938,0.0804,67289.0,67288.0,0.00829991]
[1718135003139,0.0804,67289.0,67286.0,0.148619]
[1718135003359,0.0804,67289.0,67288.0,0.00930897]
[1718135003522,0.0804,67289.0,67288.0,0.001]
[1718135003722,0.0804,67289.0,67288.0,0.00930897]
[1718135004626,0.0804,67289.0,67288.0,0.00830897]
[1718135005068,0.0804,67289.0,67286.0,0.148619]
[1718135005245,0.0804,67289.0,67288.0,0.00830897]
[1718135005489,0.0804,67289.0,67287.0,0.148616]
[1718135005699,0.0804,67289.0,67288.0,0.00830897]
[1718135005902,0.0804,67289.0,67288.0,0.00930897]
[1718135006125,0.0804,67289.0,67288.0,0.001]
[1718135006294,0.0804,67289.0,67288.0,0.00930897]
[1718135006505,0.0804,67289.0,67287.0,0.148615]
[1718135006704,0.0804,67289.0,67288.0,0.00830897]
[1718135008105,0.013649,67293.0,67288.0,0.15692297]
[1718135008323,0.013649,67293.0,67288.0,0.00830897]
[1718135008954,0.013649,67293.0,67288.0,0.00930897]
[1718135009311,0.013649,67293.0,67292.0,0.148606]
[1718135009520,0.013649,67293.0,67292.0,0.15690081]
[1718135011332,0.013649,67293.0,67292.0,0.15790081]
[1718135011548,0.013649,67293.0,67292.0,0.15890081]
[1718135013710,0.013649,67293.0,67292.0,0.23700081]
[1718135014820,0.013649,67293.0,67292.0,0.39050081]
[1718135015510,0.013649,67293.0,67292.0,0.38950081]
[1718135015729,0.013649,67293.0,67292.0,0.46070081]
[1718135015930,0.013649,67293.0,67292.0,0.46670081]
[1718135016175,0.013649,67293.0,67292.0,0.47470081]
[1718135016392,0.013649,67293.0,67292.0,0.77191281]
[1718135016609,0.013649,67293.0,67292.0,0.86648611]
[1718135016853,0.013649,67293.0,67292.0,0.91073002]
[1718135017290,0.013649,67293.0,67292.0,0.86648611]
[1718135017767,0.013649,67293.0,67292.0,0.84658611]
[1718135018612,0.013649,67293.0,67292.0,0.84736632]
[1718135019046,0.013649,67293.0,67292.0,0.86726632]
[1718135020105,0.013649,67293.0,67292.0,0.84740884]
[1718135020538,0.013649,67293.0,67292.0,0.86730884]
[1718135020744,0.013649,67293.0,67292.0,0.97402174]
[1718135021172,0.013649,67293.0,67292.0,1.47402174]
[1718135021396,0.013649,67293.0,67292.0,1.47392224]
[1718135021872,0.013649,67293.0,67292.0,0.95992224]
[1718135022288,0.013649,67293.0,67292.0,0.97292224]
[1718135022497,0.013649,67293.0,67292.0,0.95992224]
[1718135022706,0.013649,67293.0,67292.0,0.97192224]
[1718135022918,0.013649,67293.0,67292.0,0.98492224]
[1718135023999,0.013649,67293.0,67292.0,0.97292224]
[1718135024434,0.013649,67293.0,67292.0,0.98492224]
[1718135025062,0.013649,67293.0,67292.0,0.96502224]
[1718135025332,0.013649,67293.0,67292.0,0.98492224]
[1718135025540,0.013649,67293.0,67292.0,1.02913421]
[1718135025958,0.013649,67293.0,67292.0,0.98492224]
[1718135027047,0.013649,67293.0,67292.0,0.89282224]
[1718135027291,0.013649,67293.0,67292.0,0.85830934]
[1718135030717,0.013649,67293.0,67292.0,0.85822315]
[1718135031663,0.013649,67293.0,67292.0,0.78291281]
[1718135035006,0.013649,67293.0,67292.0,0.85840852]
[1718135036407,0.013649,67293.0,67292.0,0.85787992]
[1718135040636,0.013649,67293.0,67292.0,0.25686792]
[1718135040846,0.013649,67293.0,67292.0,0.32906792]
[1718135041275,0.013649,67293.0,67292.0,0.10826192]
[1718135041276,0.094049,67293.0,67292.0,0.10826192]
[1718135041691,0.094049,67293.0,67292.0,0.18046192]
[1718135041914,0.035049,67293.0,67292.0,0.18046192]
[1718135042563,0.035049,67293.0,67292.0,0.10549481]
[1718135044256,0.035049,67293.0,67292.0,0.03329481]
[1718135044486,0.035049,67293.0,67292.0,0.10549481]
[1718135045337,0.035049,67293.0,67292.0,0.03329481]
[1718135045781,0.013649,67293.0,67292.0,0.03329481]
[1718135046406,0.01255847,67293.0,67292.0,0.03329481]
[1718135048773,0.01255847,67293.0,67292.0,0.18190081]
[1718135048972,0.01255847,67293.0,67292.0,0.22731089]
[1718135049175,0.01255847,67293.0,67292.0,0.39111089]
[1718135050096,0.01341847,67293.0,67292.0,0.39111089]
[1718135050270,0.01341847,67293.0,67292.0,0.34570081]
[1718135052269,0.01341847,67293.0,67292.0,0.03329481]
[1718135052478,0.09381847,67293.0,67292.0,0.03329481]
[1718135053210,0.01341847,67293.0,67292.0,0.03329481]
[1718135055193,0.01341847,67293.0,67292.0,0.10909481]
[1718135055634,0.01341847,67293.0,67292.0,0.25770081]
[1718135059117,0.01341847,67293.0,67292.0,0.32990081]
[1718135059315,0.01341847,67293.0,67292.0,0.25770081]
[1718135060004,0.01341847,67293.0,67292.0,0.41180081]
[1718135060146,0.01341847,67293.0,67292.0,0.48400081]
[1718135060573,0.01341847,67293.0,67292.0,0.19557178]
[1718135061181,0.01341847,67293.0,67292.0,0.34417778]
[1718135062367,0.01341847,67293.0,67292.0,0.27197778]
[1718135063423,0.01341847,67293.0,67292.0,0.34417778]
[1718135063626,0.01341847,67293.0,67292.0,0.42257778]
[1718135067654,0.01341847,67293.0,67292.0,0.52675372]
[1718135067856,0.01341847,67293.0,67292.0,0.66031982]
[1718135068645,0.01341847,67293.0,67292.0,0.59387461]
[1718135068959,0.01341847,67293.0,67292.0,0.5938739]
[1718135070010,0.01341847,67293.0,67292.0,0.59442168]
[1718135070579,0.01341847,67293.0,67292.0,0.6608558]
[1718135070783,0.01341847,67293.0,67292.0,0.5886558]
[1718135071011,0.01341847,67293.0,67292.0,0.57657986]
[1718135071252,0.01341847,67293.0,67292.0,0.540334]
[1718135071465,0.01341847,67293.0,67292.0,0.560234]
[1718135073346,0.01341847,67293.0,67292.0,0.57658524]
[1718135074325,0.01341847,67293.0,67292.0,0.59626783]
[1718135074527,0.01341847,67293.0,67292.0,0.74058776]
[1718135075111,0.01341847,67293.0,67292.0,0.6741434]
[1718135076298,0.01341847,67293.0,67292.0,0.65779186]
[1718135076499,0.01341847,67293.0,67292.0,0.67414243]
[1718135078297,0.01341847,67293.0,67292.0,0.76271388]
[1718135078751,0.01341847,67293.0,67292.0,0.76271111]
[1718135078966,0.01341847,67293.0,67292.0,0.61839118]
[1718135083326,0.01341847,67293.0,67292.0,0.61933718]
[1718135086208,0.01341847,67293.0,67292.0,0.45856561]
[1718135086418,0.01341847,67293.0,67292.0,0.64145461]
[1718135087286,0.01341847,67293.0,67292.0,0.93866661]
[1718135087699,0.01341847,67293.0,67292.0,1.08298654]
[1718135090466,0.01341847,67293.0,67292.0,1.08295579]
[1718135091657,0.01341847,67293.0,67292.0,0.97704061]
[1718135092083,0.01341847,67293.0,67292.0,1.08768235]
[1718135092938,0.01341847,67293.0,67292.0,1.09868235]
[1718135092939,0.01441847,67293.0,67292.0,1.09868235]
[1718135093150,0.01541847,67293.0,67292.0,1.11068235]
[1718135093361,0.01441847,67293.0,67292.0,1.09968235]
[1718135094037,0.01441847,67293.0,67292.0,1.39689435]
[1718135095462,0.01441847,67293.0,67292.0,1.40789435]
[1718135095688,0.01541847,67293.0,67292.0,1.40789435]
[1718135096934,0.01541847,67293.0,67292.0,1.40789962]
[1718135098172,0.01541847,67293.0,67292.0,1.40789792]
[1718135099549,0.01541847,67293.0,67292.0,1.29725259]
[1718135101409,0.00873935,67311.0,67309.0,0.297137]
[1718135101612,0.00873935,67311.0,67310.0,1.19187552]
[1718135101882,0.0090605,67319.0,67310.0,2.06832154]
[1718135102082,0.0090605,67319.0,67314.0,1.138672]
[1718135102317,0.00856,67321.0,67314.0,1.138672]
[1718135102318,0.00856,67321.0,67318.0,1.068448]
[1718135102550,0.00035857,67337.0,67336.0,0.76549]
[1718135102759,0.00035857,67337.0,67336.0,1.43005734]
[1718135102975,0.00035857,67337.0,67336.0,1.22650993]
[1718135103198,0.00035857,67337.0,67336.0,1.35839399]
[1718135103410,0.00856,67339.0,67338.0,0.2199]
[1718135103626,0.00856,67339.0,67338.0,0.43459216]
[1718135104086,0.02043926,67352.0,67349.0,0.5]
[1718135104316,0.02043926,67352.0,67351.0,0.148475]
[1718135104540,0.02043926,67352.0,67351.0,0.517626]
[1718135104750,0.02043926,67352.0,67351.0,0.64972486]
[1718135105216,0.02043926,67352.0,67351.0,0.35277386]
[1718135105421,0.02043926,67352.0,67351.0,0.22701302]
[1718135105422,0.20173926,67352.0,67351.0,0.22701302]
[1718135105876,0.20173926,67352.0,67351.0,0.15481302]
[1718135106097,0.20173926,67352.0,67351.0,0.23501302]
[1718135106322,0.20173926,67352.0,67351.0,0.15461302]
[1718135106543,0.20173926,67352.0,67351.0,0.23381302]
[1718135106755,0.20173926,67352.0,67351.0,0.23681302]
[1718135106958,0.20173926,67352.0,67351.0,0.22981302]
[1718135107392,0.20173926,67352.0,67351.0,0.23181302]
[1718135107653,0.36605919,67352.0,67351.0,0.01133802]
[1718135107883,0.36605919,67352.0,67339.0,0.1485]
[1718135107884,0.01,67343.0,67339.0,0.1485]
[1718135108099,0.01,67343.0,67314.0,0.24756179]
[1718135108100,0.02,67336.0,67333.0,0.148513]
[1718135108321,0.09215996,67340.0,67333.0,0.148513]
[1718135108541,0.02,67338.0,67333.0,0.148513]
[1718135108764,0.1062,67337.0,67333.0,0.148513]
[1718135109025,0.0777,67334.0,67333.0,0.148513]
[1718135110160,0.0767,67334.0,67333.0,0.148513]
[1718135110380,0.0767,67334.0,67333.0,0.149513]
[1718135110608,0.0767,67334.0,67333.0,0.150513]
[1718135110840,0.0967,67334.0,67333.0,0.001]
[1718135111063,0.02,67331.0,67329.0,0.148524]
[1718135111286,0.02,67331.0,67323.0,0.148535]
[1718135111545,0.02,67329.0,67323.0,0.148535]
[1718135111779,0.1062,67328.0,67323.0,0.148535]
[1718135112248,0.14325199,67328.0,67323.0,0.148535]
[1718135112480,0.14325199,67328.0,67316.0,0.148551]
[1718135112481,0.02,67322.0,67316.0,0.148551]
[1718135112702,0.1262,67322.0,67316.0,0.148551]
[1718135113149,0.0823,67321.0,67316.0,0.148551]
[1718135113376,0.02085,67320.0,67316.0,0.148551]
[1718135113587,0.02085,67320.0,67311.0,0.148562]
[1718135113826,0.02085,67320.0,67316.0,0.01]
[1718135114057,0.0823,67321.0,67316.0,0.01]
[1718135114273,0.0823,67321.0,67316.0,0.008]
[1718135114483,0.0823,67321.0,67317.0,0.00877555]
[1718135116137,0.0823,67321.0,67317.0,0.01477555]
[1718135116339,0.0823,67321.0,67317.0,0.02177555]
[1718135116744,0.10115,67321.0,67317.0,0.02177555]
[1718135117187,0.02,67318.0,67317.0,0.02177555]
[1718135117387,0.02,67319.0,67317.0,0.013]
[1718135117568,0.16431993,67318.0,67317.0,0.013]
[1718135118490,0.16431993,67318.0,67317.0,0.006]
[1718135118950,0.16431993,67318.0,67317.0,0.007]
[1718135119178,0.58678692,67318.0,67317.0,0.007]
[1718135119404,0.58678692,67318.0,67317.0,0.013]
[1718135119626,0.73533492,67318.0,67317.0,0.013]
[1718135120108,0.81023492,67318.0,67317.0,0.006]
[1718135120388,1.01023492,67318.0,67317.0,0.006]
[1718135120572,1.11323492,67318.0,67317.0,0.007]
[1718135120867,1.05755485,67318.0,67317.0,0.007]
[1718135121759,1.18055485,67318.0,67317.0,0.007]
[1718135122168,1.18055485,67318.0,67317.0,0.001]
[1718135122596,1.52710685,67318.0,67317.0,0.001]
[1718135122808,0.54855,67317.0,67316.0,0.000946]
[1718135123025,0.96018986,67317.0,67316.0,0.000946]
[1718135123269,1.73953886,67317.0,67316.0,0.000946]
[1718135124144,1.91963886,67317.0,67316.0,0.000946]
[1718135124396,2.21873986,67317.0,67316.0,0.001946]
[1718135124855,2.18470686,67317.0,67316.0,0.001946]
[1718135125072,0.67496993,67317.0,67316.0,0.001946]
[1718135125295,0.77996993,67317.0,67316.0,0.002946]
[1718135125518,0.57996993,67317.0,67316.0,0.002946]
[1718135126416,0.2871,67317.0,67316.0,0.002946]
[1718135126643,0.1,67317.0,67316.0,0.000946]
[1718135126884,0.1052,67323.0,67316.0,0.000946]
[1718135127071,0.008,67317.0,67316.0,0.002946]
[1718135127296,0.008,67317.0,67316.0,0.022846]
[1718135127511,0.008,67317.0,67316.0,0.0119045]
[1718135127726,0.006,67317.0,67316.0,0.0109045]
[1718135127941,0.008,67317.0,67316.0,0.0119045]
[1718135128382,0.002,67317.0,67316.0,0.0109045]
[1718135128638,0.002,67317.0,67316.0,0.0308045]
[1718135128893,0.002,67317.0,67316.0,0.07264095]
[1718135129126,0.1,67332.0,67320.0,0.0199]
[1718135129369,0.43295979,67339.0,67325.0,0.148532]
[1718135129607,0.43295979,67342.0,67328.0,0.0199]
[1718135129840,0.20359883,67342.0,67327.0,0.0199]
[1718135130065,0.20359883,67342.0,67329.0,0.00884875]
[1718135130277,0.20359883,67342.0,67328.0,0.00884875]
[1718135130505,0.12649926,67352.0,67332.0,0.0199]
[1718135130731,0.02112056,67352.0,67341.0,0.148495]
[1718135130956,0.02112056,67352.0,67341.0,0.1653345]
[1718135131170,0.02112056,67352.0,67341.0,0.148495]
[1718135131403,0.02112056,67352.0,67342.0,0.00877379]
[1718135132777,0.07215996,67351.0,67342.0,0.01677379]
[1718135133245,0.07215996,67344.0,67342.0,0.008]
[1718135133685,0.1,67349.0,67342.0,0.008]
[1718135133907,0.1,67349.0,67342.0,0.015]
[1718135134357,0.1,67349.0,67342.0,0.008]
[1718135134784,0.002,67344.0,67342.0,0.008]
[1718135135342,0.1,67349.0,67342.0,0.013]
[1718135135561,0.04954045,67348.0,67342.0,0.013]
[1718135135771,0.04954045,67348.0,67334.0,0.148513]
[1718135136221,0.04954045,67348.0,67335.0,0.00962211]
[1718135137147,0.04954045,67348.0,67335.0,0.17803311]
[1718135137371,0.102,67349.0,67335.0,0.17803311]
[1718135137579,0.102,67349.0,67336.0,0.0199]
[1718135137826,0.1,67349.0,67335.0,0.15813311]
[1718135138038,0.1,67349.0,67335.0,0.148511]
[1718135138247,0.1,67349.0,67336.0,0.00962211]
[1718135139107,0.14954045,67349.0,67336.0,0.00962211]
[1718135139532,0.14954045,67349.0,67336.0,0.01662211]
[1718135140788,0.14954045,67349.0,67336.0,0.02262211]
[1718135141009,0.1,67349.0,67337.0,0.0199]
[1718135141233,0.1,67349.0,67338.0,0.0199]
[1718135141680,0.1,67349.0,67339.0,0.00962211]
[1718135141893,0.1,67349.0,67339.0,0.02952211]
[1718135142146,0.1,67349.0,67340.0,0.0199]
[1718135142566,0.1,67349.0,67339.0,0.0199]
[1718135142778,0.1,67349.0,67341.0,0.00962211]
[1718135142987,0.1,67349.0,67340.0,0.0199]
[1718135143195,0.1,67349.0,67342.0,0.00962211]
[1718135143429,0.1,67349.0,67341.0,0.00962966]
[1718135143640,0.1,67349.0,67340.0,0.0199]
[1718135143851,0.1,67349.0,67342.0,0.00962966]
[1718135144060,0.1,67349.0,67340.0,0.002]
[1718135144311,0.1,67349.0,67348.0,0.2361]
[1718135144530,0.02112056,67352.0,67348.0,0.2361]
[1718135144976,0.001,67349.0,67348.0,0.2361]
[1718135145186,0.001,67349.0,67348.0,0.256]
[1718135145387,0.02112056,67352.0,67348.0,0.256]
[1718135145616,0.001,67349.0,67348.0,0.256]
[1718135145820,0.02112056,67352.0,67348.0,0.256]
[1718135146033,0.02112056,67352.0,67350.0,0.0199]
[1718135146230,0.02612056,67352.0,67350.0,0.0199]
[1718135146441,0.02112056,67352.0,67348.0,0.404481]
[1718135146879,0.02112056,67352.0,67348.0,0.411481]
[1718135147082,0.02112056,67352.0,67350.0,0.148477]
[1718135147083,0.02312056,67352.0,67350.0,0.148477]
[1718135147566,0.02112056,67352.0,67351.0,0.0199]
[1718135147779,0.02112056,67352.0,67350.0,0.148477]
[1718135148676,0.02112056,67352.0,67351.0,0.2088227]
[1718135148888,0.02112056,67352.0,67351.0,0.168375]
[1718135149976,0.02112056,67352.0,67351.0,0.54459493]
[1718135150406,0.02112056,67352.0,67351.0,0.63378493]
[1718135150629,0.02112056,67352.0,67351.0,0.93073593]
[1718135150860,0.02112056,67352.0,67351.0,1.07505586]
[1718135151704,0.02112056,67352.0,67351.0,0.63378493]
[1718135152141,0.02112056,67352.0,67351.0,0.64078493]
[1718135152557,0.02112056,67352.0,67351.0,0.63378493]
[1718135153006,0.02112056,67352.0,67351.0,0.63878493]
[1718135153631,0.02112056,67352.0,67351.0,0.63578493]
[1718135154271,0.02112056,67352.0,67351.0,0.63378493]
[1718135154718,0.02112056,67352.0,67351.0,0.64078493]
[1718135155222,0.02112056,67352.0,67351.0,0.64178493]
[1718135155440,0.02112056,67352.0,67351.0,0.7589389]
[1718135155645,0.02112056,67352.0,67351.0,0.7699389]
[1718135156646,0.02112056,67352.0,67351.0,0.77948568]
[1718135156830,0.02112056,67352.0,67351.0,0.54597575]
[1718135157591,0.02112056,67352.0,67351.0,0.53597575]
[1718135157954,0.02112056,67352.0,67351.0,0.54397575]
[1718135158166,0.02112056,67352.0,67351.0,0.53297575]
[1718135158524,0.02112056,67352.0,67351.0,0.54197575]
[1718135158973,0.02112056,67352.0,67351.0,0.52207575]
[1718135159181,0.02112056,67352.0,67351.0,0.54197575]
[1718135159601,0.02112056,67352.0,67351.0,0.52207575]
[1718135159821,0.02112056,67352.0,67351.0,0.54197575]
[1718135160222,0.02112056,67352.0,67351.0,0.52207575]
[1718135160431,0.02112056,67352.0,67351.0,1.21675661]
[1718135160641,0.02112056,67352.0,67351.0,1.37503068]
[1718135160856,0.02112056,67352.0,67351.0,1.55878175]
[1718135161079,0.00856,67359.0,67358.0,0.40246]
[1718135161296,0.00856,67359.0,67358.0,0.8534319]
[1718135162137,0.00856,67359.0,67358.0,1.8928619]
[1718135162345,0.00856,67359.0,67358.0,1.89008183]
[1718135162830,0.0749,67386.0,67358.0,1.89008183]
[1718135162831,0.00017914,67392.0,67376.0,0.40182]
[1718135163046,0.00315458,67377.0,67376.0,0.94193968]
[1718135163276,0.00315458,67377.0,67376.0,1.23963826]
[1718135163478,0.00315458,67377.0,67376.0,0.27578733]
[1718135163936,0.00315458,67377.0,67376.0,0.27718981]
[1718135164149,0.00315458,67377.0,67376.0,0.00948171]
[1718135164354,0.20825458,67377.0,67376.0,0.00948171]
[1718135164568,0.20825458,67377.0,67364.0,0.4992]
[1718135164775,0.20825458,67377.0,67365.0,0.148444]
[1718135164991,0.20825458,67377.0,67376.0,0.009]
[1718135165212,0.20825458,67377.0,67376.0,0.02]
[1718135165419,0.20825458,67377.0,67365.0,0.148444]
[1718135165835,0.20825458,67377.0,67366.0,0.00945166]
[1718135166712,0.20825458,67377.0,67368.0,0.0199]
[1718135166906,0.20825458,67377.0,67370.0,0.0199]
[1718135167312,0.20825458,67377.0,67371.0,0.00945166]
[1718135167519,0.00315458,67377.0,67371.0,0.00945166]
[1718135167941,0.00315458,67377.0,67368.0,0.0199]
[1718135168150,0.00315458,67377.0,67367.0,0.0199]
[1718135168364,0.07215996,67375.0,67369.0,0.00945202]
[1718135168577,0.00315458,67377.0,67366.0,0.011]
[1718135168808,0.00315458,67377.0,67371.0,0.009]
[1718135169305,0.00315458,67377.0,67368.0,0.011]
[1718135169463,0.00315458,67377.0,67369.0,0.0199]
[1718135169773,0.00315458,67377.0,67369.0,0.0299]
[1718135169994,0.00315458,67377.0,67370.0,0.00944817]
[1718135170787,0.02154203,67377.0,67370.0,0.00944817]
[1718135171196,0.00315458,67377.0,67370.0,0.00944817]
[1718135171404,0.00315458,67377.0,67376.0,0.14842]
[1718135171930,0.00315458,67377.0,67376.0,0.15735872]
[1718135172321,0.00515458,67377.0,67376.0,0.15735872]
[1718135172538,0.00715458,67377.0,67376.0,0.15735872]
[1718135172741,0.00515458,67377.0,67376.0,0.00893872]
[1718135173142,0.00715458,67377.0,67376.0,0.001]
[1718135173368,0.00515458,67377.0,67376.0,0.00993872]
[1718135174425,0.02374203,67377.0,67376.0,0.00993872]
[1718135174635,0.00515458,67377.0,67376.0,0.00993872]
[1718135174842,0.00615458,67377.0,67376.0,0.01093872]
[1718135175046,0.00415458,67377.0,67376.0,0.00993872]
[1718135175254,0.00415458,67377.0,67376.0,0.001]
[1718135175407,0.00715458,67377.0,67371.0,0.01772977]
[1718135175624,0.00415458,67377.0,67376.0,0.001]
[1718135176021,0.01715458,67377.0,67376.0,0.002]
[1718135176291,0.01715458,67377.0,67371.0,0.01772977]
[1718135176292,0.00315458,67377.0,67371.0,0.01772977]
[1718135176572,0.00315458,67377.0,67376.0,0.001]
[1718135176573,0.00415458,67377.0,67376.0,0.001]
[1718135176768,0.01215458,67377.0,67376.0,0.001]
[1718135177972,0.01115458,67377.0,67374.0,0.01772977]
[1718135178377,0.01715458,67377.0,67376.0,0.001]
[1718135178874,0.02415458,67377.0,67376.0,0.001]
[1718135179088,0.02415458,67377.0,67376.0,0.00993316]
[1718135179312,0.03015458,67377.0,67376.0,0.001]
[1718135179530,0.03015458,67377.0,67376.0,0.00993316]
[1718135179736,0.01615458,67377.0,67376.0,0.00993316]
[1718135179908,0.00915458,67377.0,67376.0,0.00993316]
[1718135180166,0.02115458,67377.0,67376.0,0.00993316]
[1718135180858,0.03501458,67377.0,67376.0,0.01093316]
[1718135182184,0.03501458,67377.0,67376.0,0.15935316]
[1718135183252,0.03501458,67377.0,67376.0,0.15435316]
[1718135183671,0.03501458,67377.0,67376.0,0.17652848]
[1718135184063,0.03501458,67377.0,67376.0,0.15910316]
[1718135184266,0.03501458,67377.0,67376.0,0.17900316]
[1718135184657,0.03501458,67377.0,67376.0,0.15910316]